fUST/lending_fUST_20250210
["ID","MTS","AMOUNT","RATE_DAILY","PERIOD"]
[352494597,1739137854797,-500.0,0.00012602,2]
[352494599,1739137854807,-596.87,0.00012602,2]
[352494601,1739137854815,-500.0,0.00012602,2]
[352494602,1739137854827,-1144.56,0.00012602,2]
[352494604,1739137854836,-551.38689849,0.00012602,2]
[352494606,1739137854846,-500.0,0.00012602,2]
[352494608,1739137854856,-528.07,0.00012602,2]
[352494609,1739137854865,-1316.1,0.00012602,2]
[352494611,1739137854875,-533.35,0.00012602,2]
[352494613,1739137854885,-1927.7,0.00012602,2]
[352494615,1739137854895,-7284.82,0.00012602,2]
[352494617,1739137854904,-500.0,0.00012602,2]
[352494618,1739137854914,-847.12,0.00012602,2]
[352494620,1739137854923,-954.01,0.00012602,2]
[352494622,1739137854933,-2180.19,0.00012602,2]
[352494624,1739137854942,-500.0,0.00012602,2]
[352494626,1739137854951,-842.26,0.00012602,2]
[352494627,1739137854961,-500.0,0.00012602,2]
[352494629,1739137854970,-883.86,0.00012602,2]
[352494631,1739137854980,-500.0,0.00012602,2]
[352494633,1739137854990,-500.0,0.00012602,2]
[352494635,1739137855000,-151.0,0.00012602,2]
[352494637,1739137855010,-43935.02,0.00012602,2]
[352494638,1739137855023,-500.0,0.00012602,2]
[352494640,1739137855032,-2712.8,0.00012602,2]
[352494642,1739137855042,-860.57,0.00012602,2]
[352494644,1739137855052,-2341.03,0.00012602,2]
[352494646,1739137855062,-3861.99,0.00012602,2]
[352494647,1739137855071,-1171.53,0.00012602,2]
[352494649,1739137855081,-883.39,0.00012602,2]
[352494651,1739137855094,-3532.66,0.00012602,2]
[352494653,1739137855104,-500.0,0.00012602,2]
[352494655,1739137855113,-895.17,0.00012602,2]
[352494656,1739137855123,-4405.08311071,0.00012602,2]
[352494671,1739137855307,-150.45688929,0.00012602,2]
[352494673,1739137855318,-1716.4,0.00012602,2]
[352494675,1739137855328,-500.0,0.00012602,2]
[352494677,1739137855338,-500.0,0.00012602,2]
[352494679,1739137855348,-2083.89360592,0.00012602,2]
[352495462,1739137867646,-20640.41639408,0.00012602,2]
[352495464,1739137867657,-500.0,0.00012602,2]
[352495466,1739137867667,-584.12,0.00012602,2]
[352495468,1739137867677,-500.0,0.00012602,2]
[352495470,1739137867687,-2591.58,0.00012602,2]
[352495472,1739137867697,-512.6,0.00012602,2]
[352495474,1739137867707,-1831.71,0.00012602,2]
[352495476,1739137867716,-1387.72,0.00012602,2]
[352495478,1739137867727,-500.0,0.00012602,2]
[352495479,1739137867737,-4876.14,0.00012602,2]
[352495481,1739137867748,-500.0,0.00012602,2]
[352495483,1739137867758,-500.0,0.00012602,2]
[352495485,1739137867767,-500.0,0.00012602,2]
[352495487,1739137867781,-500.0,0.00012602,2]
[352495489,1739137867790,-1527.52,0.00012602,2]
[352495491,1739137867800,-500.0,0.00012602,2]
[352495494,1739137867810,-1081.99,0.00012602,2]
[352495496,1739137867820,-500.0,0.00012631,2]
[352495498,1739137867830,-155.500525,0.00012648,6]
[352495499,1739137867838,-1483.12351443,0.00012667,2]
[352495501,1739137867847,-1000.0,0.0001271,2]
[352495503,1739137867855,-515.55127136,0.0001271,2]
[352495505,1739137867863,-154.0,0.00012713,2]
[352495507,1739137867870,-154.0,0.00012713,2]
[352495509,1739137867879,-157.0,0.00012713,2]
[352495511,1739137867887,-160.0,0.00012734,6]
[352495513,1739137867896,-500.0,0.00012739,2]
[352495515,1739137867906,-946.918595,0.00012739,2]
[352495517,1739137867916,-500.0,0.00012739,2]
[352495519,1739137867925,-500.0,0.00012739,2]
[352495521,1739137867935,-511.53,0.00012739,2]
[352495523,1739137867945,-500.0,0.00012739,2]
[352495525,1739137867955,-500.0,0.00012739,2]
[352495527,1739137867965,-500.0,0.00012739,2]
[352495529,1739137867974,-525.78677848,0.00012739,2]
[352495531,1739137867983,-500.0,0.00012739,2]
[352495533,1739137867994,-500.0,0.00012739,2]
[352495535,1739137868003,-738.43,0.00012739,2]
[352495537,1739137868013,-517.69,0.00012739,2]
[352495539,1739137868027,-503.93,0.00012739,2]
[352495541,1739137868037,-500.0,0.00012739,2]
[352495543,1739137868047,-500.0,0.00012739,2]
[352495545,1739137868056,-1103.48,0.00012739,2]
[352495547,1739137868066,-724.02,0.00012739,2]
[352495549,1739137868076,-500.0,0.00012739,2]
[352495551,1739137868087,-500.0,0.00012739,2]
[352495554,1739137868102,-500.0,0.00012739,2]
[352495556,1739137868112,-824.2,0.00012739,2]
[352495558,1739137868123,-824.85,0.00012739,2]
[352495560,1739137868132,-633.47,0.00012739,2]
[352495562,1739137868144,-660.79,0.00012739,2]
[352495564,1739137868156,-628.79,0.00012739,2]
[352495566,1739137868166,-450.67224111,0.00012739,2]
[352495568,1739137868176,-1548.94,0.00012739,2]
[352495570,1739137868186,-500.0,0.00012739,2]
[352495572,1739137868196,-1526.67,0.00012739,2]
[352495574,1739137868205,-1271.62,0.00012739,2]
[352495576,1739137868215,-1037.54,0.00012739,2]
[352495578,1739137868224,-1491.1,0.00012739,2]
[352495580,1739137868234,-500.0,0.00012739,2]
[352495582,1739137868245,-500.0,0.00012739,2]
[352495584,1739137868254,-500.0,0.00012739,2]
[352495586,1739137868263,-500.0,0.00012739,2]
[352495589,1739137868278,-503.69229465,0.00012739,2]
[352495591,1739137868288,-774.85,0.00012739,2]
[352495593,1739137868298,-500.0,0.00012739,2]
[352495595,1739137868307,-500.0,0.00012739,2]
[352495597,1739137868317,-1332.36,0.00012739,2]
[352495599,1739137868326,-784.54,0.00012739,2]
[352495601,1739137868336,-884.06,0.00012739,2]
[352495603,1739137868345,-1472.41,0.00012739,2]
[352495605,1739137868355,-770.2,0.00012739,2]
[352495607,1739137868364,-500.0,0.00012739,2]
[352495609,1739137868373,-500.0,0.00012739,2]
[352495611,1739137868383,-500.0,0.00012739,2]
[352495613,1739137868393,-500.0,0.00012739,2]
[352495615,1739137868402,-500.0,0.00012739,2]
[352495617,1739137868412,-500.0,0.00012739,2]
[352495619,1739137868422,-788.28,0.00012739,2]
[352495621,1739137868432,-567.03,0.00012739,2]
[352495623,1739137868442,-500.0,0.00012739,2]
[352495625,1739137868452,-500.0,0.00012739,2]
[352495627,1739137868463,-596.87,0.00012739,2]
[352495628,1739137868474,-500.0,0.00012739,2]
[352495630,1739137868483,-1144.56,0.00012739,2]
[352495632,1739137868493,-500.0,0.00012739,2]
[352495634,1739137868504,-528.07,0.00012739,2]
[352495637,1739137868514,-1316.1,0.00012739,2]
[352495639,1739137868527,-533.35,0.00012739,2]
[352495641,1739137868536,-1927.7,0.00012739,2]
[352495643,1739137868546,-7284.82,0.00012739,2]
[352495645,1739137868557,-500.0,0.00012739,2]
[352495647,1739137868567,-847.12,0.00012739,2]
[352495649,1739137868577,-954.01,0.00012739,2]
[352495651,1739137868587,-2180.19,0.00012739,2]
[352495653,1739137868597,-500.0,0.00012739,2]
[352495655,1739137868607,-842.26,0.00012739,2]
[352495657,1739137868617,-606.37265627,0.00012739,2]
[352495659,1739137868627,-883.86,0.00012739,2]
[352495661,1739137868637,-500.0,0.00012739,2]
[352495663,1739137868647,-500.0,0.00012739,2]
[352495665,1739137868658,-151.0,0.00012739,2]
[352495667,1739137868668,-21684.36203162,0.00012739,2]
[352495683,1739137868812,-928.3289022,0.00012739,2]
[352495750,1739137869466,-8422.148927,0.00012739,2]
[352496561,1739137877992,-12900.18013918,0.00012739,2]
[352496563,1739137878001,-500.0,0.00012739,2]
[352496565,1739137878011,-2712.8,0.00012739,2]
[352496567,1739137878020,-860.57,0.00012739,2]
[352496569,1739137878032,-2341.03,0.00012739,2]
[352496571,1739137878042,-3861.99,0.00012739,2]
[352496573,1739137878052,-1171.53,0.00012739,2]
[352496575,1739137878063,-883.39,0.00012739,2]
[352496577,1739137878073,-3532.66,0.00012739,2]
[352496579,1739137878084,-895.17,0.00012739,2]
[352496581,1739137878095,-500.0,0.00012739,2]
[352496583,1739137878105,-4555.54,0.00012739,2]
[352496585,1739137878115,-1716.4,0.00012739,2]
[352496587,1739137878126,-500.0,0.00012739,2]
[352496589,1739137878138,-500.0,0.00012739,2]
[352496591,1739137878148,-22724.31,0.00012739,2]
[352496593,1739137878158,-500.0,0.00012739,2]
[352496595,1739137878169,-584.12,0.00012739,2]
[352496597,1739137878179,-2591.58,0.00012739,2]
[352496599,1739137878189,-500.0,0.00012739,2]
[352496601,1739137878199,-512.6,0.00012739,2]
[352496603,1739137878208,-1831.71,0.00012739,2]
[352496604,1739137878218,-1387.72,0.00012739,2]
[352496606,1739137878227,-500.0,0.00012739,2]
[352496608,1739137878236,-4876.14,0.00012739,2]
[352496610,1739137878246,-500.0,0.00012739,2]
[352496612,1739137878257,-500.0,0.00012739,2]
[352496614,1739137878267,-500.0,0.00012739,2]
[352496617,1739137878277,-500.0,0.00012739,2]
[352496618,1739137878290,-1527.52,0.00012739,2]
[352496620,1739137878300,-500.0,0.00012739,2]
[352496623,1739137878311,-1081.99,0.00012739,2]
[352496625,1739137878321,-1483.12351443,0.00012767,2]
[352496627,1739137878330,-2000.0,0.000128,2]
[352496629,1739137878340,-151.0,0.000128,2]
[352496630,1739137878351,-1100.0,0.00012808,2]
[352496633,1739137878360,-1500.0,0.00012822,2]
[352496643,1739137878371,-896.14889017,0.00012822,2]
[352496646,1739137878475,-231.15382922,0.00012822,2]
[352496649,1739137878498,-1268.84617078,0.00012822,2]
[352496651,1739137878509,-1483.12351443,0.00012867,2]
[352496653,1739137878519,-500.0,0.00012876,2]
[352496655,1739137878529,-511.53,0.00012876,2]
[352496657,1739137878542,-500.0,0.00012876,2]
[352496659,1739137878552,-500.0,0.00012876,2]
[352496661,1739137878562,-500.0,0.00012876,2]
[352496663,1739137878573,-500.0,0.00012876,2]
[352496665,1739137878583,-500.0,0.00012876,2]
[352496667,1739137878593,-738.43,0.00012876,2]
[352496669,1739137878603,-517.69,0.00012876,2]
[352496671,1739137878613,-503.93,0.00012876,2]
[352496673,1739137878624,-500.0,0.00012876,2]
[352496675,1739137878634,-500.0,0.00012876,2]
[352496677,1739137878644,-1103.48,0.00012876,2]
[352496679,1739137878653,-724.02,0.00012876,2]
[352496681,1739137878664,-625.58802178,0.00012876,2]
[352496683,1739137878674,-500.0,0.00012876,2]
[352496685,1739137878685,-363.8955892,0.00012876,2]
[352496687,1739137878695,-824.2,0.00012876,2]
[352496689,1739137878705,-824.85,0.00012876,2]
[352496691,1739137878715,-633.47,0.00012876,2]
[352496693,1739137878725,-660.79,0.00012876,2]
[352496695,1739137878735,-1548.94,0.00012876,2]
[352496697,1739137878745,-591.42619261,0.00012876,2]
[352496699,1739137878755,-1526.67,0.00012876,2]
[352496701,1739137878765,-1271.62,0.00012876,2]
[352496703,1739137878776,-1037.54,0.00012876,2]
[352496705,1739137878789,-1491.1,0.00012876,2]
[352496707,1739137878799,-500.0,0.00012876,2]
[352496709,1739137878810,-500.0,0.00012876,2]
[352496711,1739137878820,-507.49044969,0.00012876,2]
[352496713,1739137878830,-500.0,0.00012876,2]
[352496715,1739137878840,-774.85,0.00012876,2]
[352496717,1739137878850,-168.80832834,0.00012876,2]
[352496719,1739137878860,-500.0,0.00012876,2]
[352496720,1739137878871,-1332.36,0.00012876,2]
[352496721,1739137878882,-784.54,0.00012876,2]
[352496722,1739137878892,-884.06,0.00012876,2]
[352496723,1739137878902,-1472.41,0.00012876,2]
[352496724,1739137878912,-770.2,0.00012876,2]
[352496725,1739137878922,-500.0,0.00012876,2]
[352496726,1739137878932,-500.0,0.00012876,2]
[352496727,1739137878942,-500.0,0.00012876,2]
[352496728,1739137878952,-500.0,0.00012876,2]
[352496729,1739137878961,-500.0,0.00012876,2]
[352496730,1739137878974,-500.0,0.00012876,2]
[352496731,1739137878984,-788.28,0.00012876,2]
[352496733,1739137878994,-567.03,0.00012876,2]
[352496736,1739137879005,-500.0,0.00012876,2]
[352496738,1739137879015,-236.10681964,0.00012876,2]
[352496740,1739137879025,-596.87,0.00012876,2]
[352496741,1739137879037,-500.0,0.00012876,2]
[352496744,1739137879047,-1144.56,0.00012876,2]
[352496746,1739137879057,-500.0,0.00012876,2]
[352496748,1739137879068,-528.07,0.00012876,2]
[352496750,1739137879079,-1316.1,0.00012876,2]
[352496752,1739137879090,-533.35,0.00012876,2]
[352496754,1739137879105,-1927.7,0.00012876,2]
[352496756,1739137879116,-7284.82,0.00012876,2]
[352496758,1739137879126,-500.0,0.00012876,2]
[352496760,1739137879136,-847.12,0.00012876,2]
[352496762,1739137879148,-954.01,0.00012876,2]
[352496764,1739137879159,-2180.19,0.00012876,2]
[352496766,1739137879170,-500.0,0.00012876,2]
[352496768,1739137879181,-842.26,0.00012876,2]
[352496770,1739137879191,-883.86,0.00012876,2]
[352496772,1739137879202,-500.0,0.00012876,2]
[352496774,1739137879212,-500.0,0.00012876,2]
[352496776,1739137879222,-151.0,0.00012876,2]
[352496778,1739137879232,-30089.02375068,0.00012876,2]
[352496960,1739137882791,-13845.99624932,0.00012876,2]
[352496962,1739137882801,-500.0,0.00012876,2]
[352496963,1739137882811,-2712.8,0.00012876,2]
[352496965,1739137882820,-860.57,0.00012876,2]
[352496967,1739137882830,-2341.03,0.00012876,2]
[352496969,1739137882839,-3861.99,0.00012876,2]
[352496971,1739137882849,-1171.53,0.00012876,2]
[352496972,1739137882859,-883.39,0.00012876,2]
[352496973,1739137882869,-1599.25509068,0.00012876,2]
[352496974,1739137882925,-1427.095,0.00012876,2]
[352496975,1739137882937,-500.0,0.00012876,2]
[352496976,1739137882948,-6.30990932,0.00012876,2]
[352496978,1739137882958,-500.0,0.00012876,2]
[352496979,1739137882967,-895.17,0.00012876,2]
[352496980,1739137882976,-4555.54,0.00012876,2]
[352496981,1739137882985,-1716.4,0.00012876,2]
[352496982,1739137882995,-500.0,0.00012876,2]
[352496983,1739137883004,-500.0,0.00012876,2]
[352496984,1739137883013,-22724.31,0.00012876,2]
[352496985,1739137883023,-500.0,0.00012876,2]
[352496986,1739137883036,-584.12,0.00012876,2]
[352496987,1739137883047,-2591.58,0.00012876,2]
[352496988,1739137883056,-500.0,0.00012876,2]
[352496989,1739137883065,-512.6,0.00012876,2]
[352496990,1739137883075,-1831.71,0.00012876,2]
[352496991,1739137883084,-1387.72,0.00012876,2]
[352496992,1739137883094,-500.0,0.00012876,2]
[352496993,1739137883105,-3100.09009069,0.00012876,2]
[352496994,1739137884139,-1776.04990931,0.00012876,2]
[352496995,1739137884149,-500.0,0.00012876,2]
[352496996,1739137884159,-500.0,0.00012876,2]
[352496997,1739137884168,-500.0,0.00012876,2]
[352496998,1739137884178,-500.0,0.00012876,2]
[352496999,1739137884187,-1527.52,0.00012876,2]
[352497000,1739137884198,-500.0,0.00012876,2]
[352497001,1739137884467,-1081.99,0.00012876,2]
[352497002,1739137884483,-10127.24210269,0.00012899,3]
[352497003,1739137884496,-1889.81863723,0.00012899,3]
[352497004,1739137884506,-160.0,0.00012947,7]
[352497005,1739137884517,-1483.12351443,0.00012967,2]
[352497006,1739137884528,-155.500525,0.0001299,7]
[352497007,1739137884541,-7438.69753278,0.00013,2]
[352497008,1739137884551,-100142.65092386,0.00013,2]
[352497009,1739137884561,-88452.81192013,0.00013,2]
[352497010,1739137884571,-189.0,0.00013,2]
[352497011,1739137884580,-502.19,0.00013,2]
[352497012,1739137884590,-500.0,0.00013,2]
[352497013,1739137884600,-500.0,0.00013,2]
[352497014,1739137884610,-500.0,0.00013,2]
[352497015,1739137884619,-500.0,0.00013,2]
[352497016,1739137884629,-500.0,0.00013,2]
[352497017,1739137884640,-500.0,0.00013,2]
[352497018,1739137884651,-500.0,0.00013,2]
[352497019,1739137884661,-500.0,0.00013,2]
[352497020,1739137884671,-500.0,0.00013,2]
[352497021,1739137884681,-500.0,0.00013,2]
[352497022,1739137884691,-500.0,0.00013,2]
[352497023,1739137884700,-500.0,0.00013,2]
[352497024,1739137884710,-500.0,0.00013,2]
[352497025,1739137884719,-500.0,0.00013,2]
[352497026,1739137884728,-500.0,0.00013,2]
[352497027,1739137884737,-500.0,0.00013,2]
[352497028,1739137884747,-500.0,0.00013,2]
[352497029,1739137884756,-500.0,0.00013,2]
[352497030,1739137884767,-500.0,0.00013,2]
[352497031,1739137884777,-500.0,0.00013,2]
[352497032,1739137884789,-500.0,0.00013,2]
[352497033,1739137884799,-500.0,0.00013,2]
[352497034,1739137884809,-500.0,0.00013,2]
[352497035,1739137884819,-500.0,0.00013,2]
[352497036,1739137884829,-500.0,0.00013,2]
[352497037,1739137884838,-500.0,0.00013,2]
[352497038,1739137884847,-500.0,0.00013,2]
[352497039,1739137884857,-500.0,0.00013,2]
[352497040,1739137884867,-500.0,0.00013,2]
[352497041,1739137884876,-500.0,0.00013,2]
[352497042,1739137884886,-500.0,0.00013,2]
[352497043,1739137884895,-500.0,0.00013,2]
[352497044,1739137884905,-500.0,0.00013,2]
[352497045,1739137884914,-500.0,0.00013,2]
[352497046,1739137884923,-500.0,0.00013,2]
[352497047,1739137884935,-500.0,0.00013,2]
[352497048,1739137884944,-500.0,0.00013,2]
[352497049,1739137884953,-500.0,0.00013,2]
[352497050,1739137884963,-500.0,0.00013,2]
[352497051,1739137884973,-500.0,0.00013,2]
[352497052,1739137884983,-500.0,0.00013,2]
[352497053,1739137884992,-500.0,0.00013,2]
[352497054,1739137885002,-500.0,0.00013,2]
[352497055,1739137885012,-500.0,0.00013,2]
[352497056,1739137885022,-500.0,0.00013,2]
[352497057,1739137885032,-500.0,0.00013,2]
[352497058,1739137885046,-500.0,0.00013,2]
[352497059,1739137885056,-359.61,0.00013,2]
[352497060,1739137885065,-500.0,0.00013,2]
[352497061,1739137885075,-500.0,0.00013,2]
[352497062,1739137885085,-500.0,0.00013,2]
[352497063,1739137885097,-500.0,0.00013,2]
[352497064,1739137885110,-500.0,0.00013,2]
[352497065,1739137885122,-500.0,0.00013,2]
[352497066,1739137885132,-500.0,0.00013,2]
[352497067,1739137885145,-500.0,0.00013,2]
[352497068,1739137885155,-500.0,0.00013,2]
[352497069,1739137885165,-500.0,0.00013,2]
[352497070,1739137885176,-500.0,0.00013,2]
[352497071,1739137885186,-500.0,0.00013,2]
[352497072,1739137885195,-500.0,0.00013,2]
[352497073,1739137885207,-500.0,0.00013,2]
[352497074,1739137885217,-500.0,0.00013,2]
[352497075,1739137885226,-500.0,0.00013,2]
[352497076,1739137885237,-500.0,0.00013,2]
[352497077,1739137885246,-500.0,0.00013,2]
[352497078,1739137885256,-500.0,0.00013,2]
[352497079,1739137885267,-500.0,0.00013,2]
[352497080,1739137885277,-500.0,0.00013,2]
[352497081,1739137885293,-500.0,0.00013,2]
[352497082,1739137885303,-500.0,0.00013,2]
[352497083,1739137885313,-500.0,0.00013,2]
[352497084,1739137885324,-500.0,0.00013,2]
[352497085,1739137885334,-500.0,0.00013,2]
[352497086,1739137885344,-500.0,0.00013,2]
[352497087,1739137885355,-500.0,0.00013,2]
[352497088,1739137885365,-500.0,0.00013,2]
[352497089,1739137885377,-500.0,0.00013,2]
[352497090,1739137885388,-214.76,0.00013,2]
[352497091,1739137885399,-500.0,0.00013,2]
[352497092,1739137885409,-500.0,0.00013,2]
[352497093,1739137885419,-500.0,0.00013,2]
[352497094,1739137885430,-535.56,0.00013,2]
[352497095,1739137885441,-500.0,0.00013,2]
[352497096,1739137885452,-500.0,0.00013,2]
[352497097,1739137885463,-500.0,0.00013,2]
[352497098,1739137885473,-500.0,0.00013,2]
[352497099,1739137885484,-500.0,0.00013,2]
[352497100,1739137885495,-500.0,0.00013,2]
[352497101,1739137885505,-500.0,0.00013,2]
[352497102,1739137885515,-462.39,0.00013,2]
[352497103,1739137885525,-500.0,0.00013,2]
[352497104,1739137885538,-500.0,0.00013,2]
[352497105,1739137885548,-380.47,0.00013,2]
[352497106,1739137885559,-151.0,0.00013,2]
[352497107,1739137885569,-500.0,0.00013013,2]
[352497108,1739137885579,-500.0,0.00013013,2]
[352497109,1739137885589,-500.0,0.00013013,2]
[352497110,1739137885599,-511.53,0.00013013,2]
[352497111,1739137885610,-500.0,0.00013013,2]
[352497112,1739137885620,-500.0,0.00013013,2]
[352497113,1739137885630,-500.0,0.00013013,2]
[352497114,1739137885641,-500.0,0.00013013,2]
[352497115,1739137885652,-500.0,0.00013013,2]
[352497116,1739137885662,-738.43,0.00013013,2]
[352497117,1739137885673,-517.69,0.00013013,2]
[352497118,1739137885683,-503.93,0.00013013,2]
[352497119,1739137885694,-450.90504509,0.00013013,2]
[352497120,1739137885703,-500.0,0.00013013,2]
[352497121,1739137885713,-1103.48,0.00013013,2]
[352497122,1739137885722,-724.02,0.00013013,2]
[352497123,1739137885732,-500.0,0.00013013,2]
[352497124,1739137885742,-824.2,0.00013013,2]
[352497125,1739137885751,-824.85,0.00013013,2]
[352497126,1739137885761,-633.47,0.00013013,2]
[352497127,1739137885771,-660.79,0.00013013,2]
[352497128,1739137885781,-1548.94,0.00013013,2]
[352497129,1739137885793,-1526.67,0.00013013,2]
[352497130,1739137885802,-1271.62,0.00013013,2]
[352497131,1739137885812,-1037.54,0.00013013,2]
[352497132,1739137885822,-1491.1,0.00013013,2]
[352497133,1739137885834,-500.0,0.00013013,2]
[352497134,1739137885843,-500.0,0.00013013,2]
[352497135,1739137885853,-508.86823864,0.00013013,2]
[352497136,1739137885863,-774.85,0.00013013,2]
[352497137,1739137885873,-500.0,0.00013013,2]
[352497138,1739137885883,-1332.36,0.00013013,2]
[352497139,1739137885893,-784.54,0.00013013,2]
[352497140,1739137885903,-884.06,0.00013013,2]
[352497141,1739137885912,-1472.41,0.00013013,2]
[352497142,1739137885924,-770.2,0.00013013,2]
[352497143,1739137885933,-500.0,0.00013013,2]
[352497144,1739137885943,-616.62090237,0.00013013,2]
[352497145,1739137885953,-500.0,0.00013013,2]
[352497146,1739137885962,-500.0,0.00013013,2]
[352497147,1739137885972,-500.0,0.00013013,2]
[352497148,1739137885983,-500.0,0.00013013,2]
[352497149,1739137885993,-788.28,0.00013013,2]
[352497150,1739137886003,-567.03,0.00013013,2]
[352497151,1739137886014,-596.87,0.00013013,2]
[352497152,1739137886023,-500.0,0.00013013,2]
[352497153,1739137886034,-1144.56,0.00013013,2]
[352497154,1739137886046,-500.0,0.00013013,2]
[352497155,1739137886056,-528.07,0.00013013,2]
[352497156,1739137886066,-1316.1,0.00013013,2]
[352497157,1739137886076,-533.35,0.00013013,2]
[352497158,1739137886085,-1927.7,0.00013013,2]
[352497159,1739137886095,-7284.82,0.00013013,2]
[352497160,1739137886104,-500.0,0.00013013,2]
[352497161,1739137886114,-847.12,0.00013013,2]
[352497162,1739137886126,-954.01,0.00013013,2]
[352497163,1739137886135,-2180.19,0.00013013,2]
[352497164,1739137886145,-500.0,0.00013013,2]
[352497165,1739137886154,-842.26,0.00013013,2]
[352497166,1739137886164,-883.86,0.00013013,2]
[352497167,1739137886174,-500.0,0.00013013,2]
[352497168,1739137886183,-500.0,0.00013013,2]
[352497169,1739137886193,-43935.02,0.00013013,2]
[352497170,1739137886203,-165.87,0.00013013,2]
[352497171,1739137886213,-2712.8,0.00013013,2]
[352497172,1739137886222,-860.57,0.00013013,2]
[352497173,1739137886233,-2341.03,0.00013013,2]
[352497174,1739137886243,-3861.99,0.00013013,2]
[352497175,1739137886252,-1171.53,0.00013013,2]
[352497176,1739137886263,-883.39,0.00013013,2]
[352497177,1739137886273,-3532.66,0.00013013,2]
[352497178,1739137886282,-500.0,0.00013013,2]
[352497179,1739137886299,-895.17,0.00013013,2]
[352497180,1739137886309,-4555.54,0.00013013,2]
[352497181,1739137886320,-1716.4,0.00013013,2]
[352497182,1739137886330,-500.0,0.00013013,2]
[352497183,1739137886340,-500.0,0.00013013,2]
[352497184,1739137886351,-22724.31,0.00013013,2]
[352497185,1739137886363,-500.0,0.00013013,2]
[352497186,1739137886373,-584.12,0.00013013,2]
[352497187,1739137886384,-2591.58,0.00013013,2]
[352497188,1739137886395,-500.0,0.00013013,2]
[352497189,1739137886405,-512.6,0.00013013,2]
[352497190,1739137886415,-1831.71,0.00013013,2]
[352497191,1739137886425,-1387.72,0.00013013,2]
[352497192,1739137886435,-500.0,0.00013013,2]
[352497193,1739137886445,-4876.14,0.00013013,2]
[352497194,1739137886457,-500.0,0.00013013,2]
[352497195,1739137886468,-500.0,0.00013013,2]
[352497196,1739137886478,-500.0,0.00013013,2]
[352497197,1739137886487,-500.0,0.00013013,2]
[352497198,1739137886497,-1527.52,0.00013013,2]
[352497199,1739137886506,-500.0,0.00013013,2]
[352497200,1739137886516,-1081.99,0.00013013,2]
[352497201,1739137886526,-1483.12351443,0.00013067,2]
[352497202,1739137886540,-500.0,0.0001315,2]
[352497203,1739137886549,-511.53,0.0001315,2]
[352497204,1739137886559,-500.0,0.0001315,2]
[352497205,1739137886571,-500.0,0.0001315,2]
[352497206,1739137886580,-485.43393254,0.0001315,2]
[352497207,1739137886590,-500.0,0.0001315,2]
[352497208,1739137886599,-327.20664178,0.0001315,2]
[352497209,1739137886609,-738.43,0.0001315,2]
[352497210,1739137886619,-517.69,0.0001315,2]
[352497211,1739137886630,-503.93,0.0001315,2]